[Event "Prague Open 2024"]
[Site "Prague"]
[Date "2024.01.08"]
[Round "5.19"]
[White "Rakovsky, Jakub"]
[Black "Zemlicka, Vit"]
[Result "1/2-1/2"]
[ECO "B06"]
[WhiteElo "2157"]
[BlackElo "1964"]
[Annotator "RC"]
[PlyCount "60"]
[EventDate "2024.01.02"]
[EventType "swiss"]
[EventCountry "CZE"]
[SourceTitle "playchess.com"]
[Source "ChessBase"]
[SourceQuality "1"]
[TimeControl "40/5400+30:1800+30"]

1. e4 {[%emt 0:00:30]} g6 {[%emt 0:00:17]} 2. d4 {[%emt 0:00:09]} Bg7 {[%emt 0:00:04]} 3. Nc3 {[%emt 0:00:23]} d6 {[%emt 0:00:10]} 4. Be3 {[%emt 0:00:09]} a6 {[%emt 0:00:11]} 5. Nf3 {[%emt 0:03:57]} Nf6 {[%emt 0:02:12]} 6. a4 {[%emt 0:02:10]} Nc6 {[%emt 0:08:48]} 7. h3 {[%emt 0:13:41]} O-O {[%emt 0:01:55]} 8. g4 {[%emt 0:08:03]} e5 {[%emt 0:06:08]} 9. d5 {[%emt 0:00:44]} Nd4 {[%emt 0:13:19]} 10. Nxd4 {[%emt 0:04:17]} exd4 {[%emt 0:00:07]} 11. Bxd4 {[%emt 0:00:54]} Re8 {[%emt 0:03:09]} 12. Bg2 {[%emt 0:13:40]} c5 {[%emt 0:10:23]} 13. dxc6 {[%emt 0:10:16]} bxc6 {[%emt 0:03:18]} 14. O-O {[%emt 0:00:32]} Rb8 {[%emt 0:02:42]} 15. Rb1 {[%emt 0:09:44]} c5 {[%emt 0:08:02]} 16. Be3 {[%emt 0:00:05]} Bb7 {[%emt 0:02:38]} 17. Qd3 {[%emt 0:03:44]} Qe7 {[%emt 0:02:48]} 18. Bf4 {[%emt 0:10:36]} Rbd8 {[%emt 0:02:56]} 19. Rfe1 {[%emt 0:01:46]} h5 {[%emt 0:06:56]} 20. Qg3 {[%emt 0:04:03]} hxg4 {[%emt 0:01:55]} 21. hxg4 {[%emt 0:00:03]} Qe6 {[%emt 0:01:56]} 22. e5 {[%emt 0:02:29]} dxe5 {[%emt 0:03:32]} 23. Rxe5 {[%emt 0:01:27]} Qc8 {[%emt 0:02:35]} 24. Bxb7 {[%emt 0:03:45]} Qxb7 {[%emt 0:00:05]} 25. Rxc5 {[%emt 0:00:15]} Ne4 {[%emt 0:03:51]} 26. Nxe4 {[%emt 0:01:21]} Rxe4 {[%emt 0:01:37]} 27. Be5 {[%emt 0:04:03]} Qb4 {[%emt 0:09:21]} 28. Qc3 {[%emt 0:00:24]} Rxg4+ {[%emt 0:00:50]} 29. Kf1 {[%emt 0:00:26]} Qxc3 {[%emt 0:02:12]} 30. Bxc3 {[%emt 0:00:34]} Bxc3 {[%emt 0:00:30]} 1/2-1/2

[Event "Prague Open 2024"]
[Site "Prague"]
[Date "2024.01.08"]
[Round "5.20"]
[White "Koridze, Lile"]
[Black "Bech, Havard Eriksen"]
[Result "1-0"]
[ECO "D30"]
[WhiteElo "2152"]
[BlackElo "1955"]
[Annotator "RC"]
[PlyCount "91"]
[EventDate "2024.01.02"]
[EventType "swiss"]
[EventCountry "CZE"]
[SourceTitle "playchess.com"]
[Source "ChessBase"]
[SourceQuality "1"]
[TimeControl "40/5400+30:1800+30"]

1. d4 {[%emt 0:00:02]} d5 {[%emt 0:00:07]} 2. c4 {[%emt 0:00:05]} c6 {[%emt 0:00:02]} 3. Nf3 {[%emt 0:00:04]} Nf6 {[%emt 0:00:07]} 4. e3 {[%emt 0:00:18]} e6 {[%emt 0:01:11]} 5. Nbd2 {[%emt 0:00:25]} Nbd7 {[%emt 0:00:26]} 6. Bd3 {[%emt 0:02:23]} Bd6 {[%emt 0:00:40]} 7. O-O {[%emt 0:04:16]} O-O {[%emt 0:01:16]} 8. e4 {[%emt 0:02:41]} e5 {[%emt 0:00:09]} 9. cxd5 {[%emt 0:04:36]} cxd5 {[%emt 0:00:22]} 10. exd5 {[%emt 0:00:32]} exd4 {[%emt 0:03:32]} 11. Nb3 {[%emt 0:11:01]} Nb6 {[%emt 0:04:22]} 12. Nbxd4 {[%emt 0:06:07]} Nbxd5 {[%emt 0:01:13]} 13. Bg5 {[%emt 0:05:20]} h6 {[%emt 0:12:54]} 14. Bh4 {[%emt 0:00:15]} Bg4 {[%emt 0:01:14]} 15. Bf5 {[%emt 0:12:48]} Bxf5 {[%emt 0:15:14]} 16. Nxf5 {[%emt 0:00:04]} Bc5 {[%emt 0:06:34]} 17. Ne5 {[%emt 0:06:16]} Qb6 {[%emt 0:09:48]} 18. Qf3 {[%emt 0:07:10]} Rfe8 {[%emt 0:12:01]} 19. Rae1 {[%emt 0:09:45]} Bf8 {[%emt 0:08:02]} 20. Qg3 {[%emt 0:05:46]} g6 {[%emt 0:02:50]} 21. Nc4 {[%emt 0:12:31]} Qb4 {[%emt 0:02:50]} 22. Rc1 {[%emt 0:02:22]} Ne4 {[%emt 0:03:49]} 23. Qg4 {[%emt 0:02:02]} h5 {[%emt 0:00:45]} 24. Qd1 {[%emt 0:00:04]} Ndc3 {[%emt 0:03:18]} 25. bxc3 {[%emt 0:02:55]} Qxc4 {[%emt 0:00:03]} 26. Ne3 {[%emt 0:00:40]} Qc6 {[%emt 0:01:43]} 27. Qd5 {[%emt 0:00:54]} Qxd5 {[%emt 0:03:17]} 28. Nxd5 {[%emt 0:00:05]} g5 {[%emt 0:00:14]} 29. Rfe1 {[%emt 0:00:43]} Bg7 {[%emt 0:01:16]} 30. Nc7 {[%emt 0:01:06]} Bxc3 {[%emt 0:04:15]} 31. Re2 {[%emt 0:00:14]} Bd4 {[%emt 0:01:49]} 32. Nxe8 {[%emt 0:00:42]} Rxe8 {[%emt 0:00:13]} 33. Bxg5 {[%emt 0:00:08]} Bxf2+ {[%emt 0:00:38]} 34. Rxf2 {[%emt 0:00:27]} Nxg5 {[%emt 0:00:29]} 35. Rf5 {[%emt 0:00:16]} Ne4 {[%emt 0:00:43]} 36. Rxh5 {[%emt 0:00:09]} Kg7 {[%emt 0:00:31]} 37. Rd5 {[%emt 0:00:57]} Nf6 {[%emt 0:00:27]} 38. Rf5 {[%emt 0:00:15]} Re7 {[%emt 0:00:24]} 39. Rcf1 {[%emt 0:00:32]} Nd7 {[%emt 0:00:23]} 40. h4 {[%emt 0:00:17]} Ne5 {[%emt 0:00:14]} 41. Rg5+ {[%emt 0:30:41]} Kh6 {[%emt 0:30:30]} 42. Rf6+ {[%emt 0:01:01]} Kh7 {[%emt 0:00:11]} 43. Rff5 {[%emt 0:00:13]} Nc6 {[%emt 0:00:21]} 44. Rh5+ {[%emt 0:00:05]} Kg7 {[%emt 0:00:21]} 45. Rfg5+ {[%emt 0:00:03]} Kf6 {[%emt 0:00:15]} 46. Rh6# {[%emt 0:00:03]} 1-0

[Event "Prague Open 2024"]
[Site "Prague"]
[Date "2024.01.09"]
[Round "6.1"]
[White "Tobak, Mikhail"]
[Black "Mis, Mieszko"]
[Result "1/2-1/2"]
[ECO "B40"]
[WhiteElo "2288"]
[BlackElo "2301"]
[Annotator "RC"]
[PlyCount "73"]
[EventDate "2024.01.02"]
[EventType "swiss"]
[EventCountry "CZE"]
[SourceTitle "playchess.com"]
[Source "ChessBase"]
[SourceQuality "1"]
[TimeControl "40/5400+30:1800+30"]

1. e4 {[%emt 0:00:09]} c5 {[%emt 0:00:15]} 2. Nf3 {[%emt 0:00:44]} e6 {[%emt 0:00:15]} 3. g3 {[%emt 0:00:54]} Nc6 {[%emt 0:00:22]} 4. Bg2 {[%emt 0:00:08]} Nf6 {[%emt 0:00:26]} 5. d3 {[%emt 0:00:42]} d5 {[%emt 0:00:11]} 6. Qe2 {[%emt 0:00:40]} Be7 {[%emt 0:00:12]} 7. e5 {[%emt 0:00:37]} Nd7 {[%emt 0:00:14]} 8. c4 {[%emt 0:00:10]} O-O {[%emt 0:00:24]} 9. O-O {[%emt 0:02:24]} b5 {[%emt 0:00:11]} 10. cxd5 {[%emt 0:09:05]} exd5 {[%emt 0:00:06]} 11. Nc3 {[%emt 0:01:49]} Nb6 {[%emt 0:00:06]} 12. Nxb5 {[%emt 0:01:26]} Rb8 {[%emt 0:00:11]} 13. Na3 {[%emt 0:05:48]} Bg4 {[%emt 0:05:12]} 14. Nc2 {[%emt 0:00:23]} Qd7 {[%emt 0:30:01]} 15. Re1 {[%emt 0:19:44]} Rfe8 {[%emt 0:05:38]} 16. Bf4 {[%emt 0:04:08]} Bd6 {[%emt 0:05:37]} 17. Qd2 {[%emt 0:04:11]} Bc7 {[%emt 0:00:46]} 18. b3 {[%emt 0:02:41]} Bxf3 {[%emt 0:03:47]} 19. Bxf3 {[%emt 0:00:39]} Bxe5 {[%emt 0:02:16]} 20. Bxe5 {[%emt 0:03:55]} Nxe5 {[%emt 0:00:10]} 21. Bg2 {[%emt 0:00:11]} d4 {[%emt 0:01:43]} 22. Re4 {[%emt 0:03:20]} Nc6 {[%emt 0:06:08]} 23. Qg5 {[%emt 0:04:40]} Rxe4 {[%emt 0:02:57]} 24. Bxe4 {[%emt 0:00:08]} Qd6 {[%emt 0:06:33]} 25. Na3 {[%emt 0:02:49]} h6 {[%emt 0:03:51]} 26. Nb5 {[%emt 0:00:37]} hxg5 {[%emt 0:02:22]} 27. Nxd6 {[%emt 0:00:02]} Nb4 {[%emt 0:00:25]} 28. a3 {[%emt 0:06:49]} N4d5 {[%emt 0:01:42]} 29. b4 {[%emt 0:00:13]} cxb4 {[%emt 0:00:21]} 30. axb4 {[%emt 0:00:03]} Rd8 {[%emt 0:02:59]} 31. Nb7 {[%emt 0:07:24]} Ra8 {[%emt 0:01:48]} 32. Nc5 {[%emt 0:03:06]} Rd8 {[%emt 0:05:59]} 33. b5 {[%emt 0:04:02]} Nc8 {[%emt 0:02:13]} 34. Nb7 {[%emt 0:03:31]} Rd7 {[%emt 0:00:02]} 35. Nc5 {[%emt 0:02:01]} Rd8 {[%emt 0:00:02]} 36. Nb7 {[%emt 0:07:46]} Rd7 {[%emt 0:00:03]} 37. Nc5 {[%emt 0:00:27]} 1/2-1/2

[Event "Prague Open 2024"]
[Site "Prague"]
[Date "2024.01.09"]
[Round "6.2"]
[White "Sowinski, Pawel"]
[Black "Stanojevic, Ilija"]
[Result "1/2-1/2"]
[ECO "D78"]
[WhiteElo "2357"]
[BlackElo "2206"]
[Annotator "RC"]
[PlyCount "66"]
[EventDate "2024.01.02"]
[EventType "swiss"]
[EventCountry "CZE"]
[SourceTitle "playchess.com"]
[Source "ChessBase"]
[SourceQuality "1"]
[TimeControl "40/5400+30:1800+30"]

1. Nf3 d5 2. g3 g6 3. Bg2 Bg7 4. d4 Nf6 5. O-O O-O 6. c4 c6 7. b3 Be6 8. Nbd2 Qb6 9. Bb2 a5 10. Re1 a4 11. c5 Qb5 12. Bc3 axb3 13. Qxb3 Qxb3 14. axb3 Nbd7 15. b4 h6 16. h3 Ne4 17. Nxe4 dxe4 18. Nd2 f5 19. e3 Bd5 20. Bf1 b5 21. cxb6 Nxb6 22. Ra5 Na4 23. Ba1 e6 24. Rc1 Rfb8 25. Rxa8 Rxa8 26. b5 cxb5 27. Bxb5 Nb6 28. Bc3 Bf8 29. Ra1 Rxa1+ 30. Bxa1 Bb4 31. Nb1 Ba2 32. Bc3 Bxb1 33. Bxb4 Ba2 1/2-1/2

[Event "Prague Open 2024"]
[Site "Prague"]
[Date "2024.01.09"]
[Round "6.3"]
[White "Eliseev, Sergey"]
[Black "Mohylnyi, Stepan"]
[Result "0-1"]
[ECO "B44"]
[WhiteElo "2232"]
[BlackElo "2180"]
[Annotator "TA"]
[PlyCount "152"]
[EventDate "2024.01.02"]
[EventType "swiss"]
[EventCountry "CZE"]
[SourceTitle "playchess.com"]
[Source "ChessBase"]
[SourceQuality "1"]
[TimeControl "40/5400+30:1800+30"]

{[%evp 13,152,62,100,37,48,0,14,0,7,-7,0,0,27,22,21,0,0,-2,0,0,29,27,21,26,26,23,28,18,54,39,57,15,22,12,39,41,97,23,23,23,23,10,23,23,27,28,27,26,26,22,72,38,41,41,33,27,28,27,51,52,50,11,10,15,54,-39,0,0,54,-39,-28,-29,-31,-49,-16,-112,-55,-143,-85,-88,0,-74,-74,-73,0,0,0,0,0,-2,-8,-171,-180,-182,-25,-151,-8,-8,-8,-8,-8,-15,-16,-22,-35,-1347,-1316,-632,-587,-29960,-29955,-29961,-29964,-29947,-12125,-29968,-29969,-29972,-29973,-29975,-29975,-29971,-29971,-29972,-29973,-29972,-29974,-29979,-29980,-29980,-29981,-29981,-29982,-29982,-29983,-29983,-29984,-29984,-29985,-29988,-29989]} 1. e4 c5 2. Nf3 e6 3. d4 cxd4 4. Nxd4 Nc6 5. Nb5 a6 6. Nd6+ Bxd6 7. Qxd6 Qe7 8. Qxe7+ {B44: Sicilian: Taimanov: 5 Nb5.} (8. Qg3 $1 $16) 8... Ngxe7 $14 {[%cal Bg8e7,Be7c8,Bc8d6][%mdl 32] [#]} 9. a4 $146 ({Predecessor:} 9. c3 d5 10. exd5 Nxd5 11. Bd3 O-O 12. Nd2 b5 13. Nf3 Bb7 14. O-O e5 15. Be4 Rad8 {1-0 Deveci,H (1948)-Rodriguez Dominguez,M (2011) Titled Tuesday intern op 26th Sep Early blitz 2023 (7)}) 9... d5 10. f3 {The position is equal.} O-O 11. a5 Bd7 12. Be3 d4 13. Bd2 Nc8 14. Bd3 Nd6 15. f4 f6 16. Na3 e5 17. fxe5 fxe5 18. Nc4 Nxc4 19. Bxc4+ Kh8 20. Ra3 Na7 21. Rf3 Rfc8 22. Bd3 (22. Bd5 $5 {[%cal Rd5b7]} Bc6 23. Kd1 $14) 22... Be6 {Inhibits Rf7.} 23. h4 Nc6 24. h5 h6 (24... Rc7 $14) 25. Rg1 (25. g4 $1 $16) 25... Rf8 $11 26. Rxf8+ Rxf8 27. Be2 Kh7 28. g4 g5 29. hxg6+ Kxg6 30. Rh1 Rh8 31. Rh5 Rh7 (31... Kg7 $11) 32. Kf2 (32. b4 $5 {[%cal Re1f2]}) 32... Kg7 33. Kg3 Bf7 34. Rh1 Bg6 35. Bd3 h5 36. g5 Rh8 37. b4 (37. Rf1 $5) 37... Na7 38. Rf1 Rf8 {Inhibits Rf6.} 39. Re1 (39. Rxf8 $14 Kxf8 40. c4) 39... Rc8 (39... Nb5 $15) 40. Rf1 $14 Rf8 $1 41. Rh1 (41. Rxf8 $14 Kxf8 42. c4) 41... Nb5 $15 42. Rh4 Rc8 43. Bc1 Nc3 {[%cal Oc3e2]} 44. Kf2 {Against Ne2} (44. Bd2 $11) 44... Rf8+ (44... Be8 $17 45. Rh1 Kg6) 45. Ke1 (45. Kg3 $15) 45... Rf3 ({Black should try} 45... Be8 46. Bc4 Rf3) 46. Bd2 $17 Rf8 {Black has more active pieces.} (46... Be8 $17 {Threatens to win with ...Kg6.} 47. Bxc3 dxc3) 47. Bxc3 (47. Bc1 $1 $11 {remains equal.}) 47... dxc3 $11 {[%mdl 4096] Endgame KRB-KRB} 48. Bc4 {[#]} Bf7 (48... Be8 $1 $17) 49. Bd5 Bxd5 50. exd5 {KR-KR} Kg6 51. Rc4 Rd8 ({Of course not} 51... Kxg5 52. Rxc3 h4 53. Ke2) 52. Rc7 $2 (52. Rxc3 $11 {and White is okay.} Rxd5 53. Rc7) 52... Rxd5 $19 ({Worse is} 52... Kxg5 53. Rxb7 Rxd5 54. Rg7+ Kf4 55. Rc7 $17) 53. Rxb7 {[#]} Kxg5 $2 ({Better is} 53... Rd2 $1 $19 54. Rb6+ Kxg5 55. Rxa6 h4) 54. Rb6 (54. Rg7+ $1 $11 Kf4 55. Rc7) 54... Rd4 ({Black should play} 54... Rd2 $17 55. Rxa6 h4) 55. Rxa6 $11 {Black must now prevent b5.} Rxb4 {And now ...Rb2 would win.} 56. Ke2 Rd4 57. Ra8 Rd2+ 58. Ke3 Rxc2 59. a6 $2 {[%mdl 8192] White is on the road to losing.} (59. Kd3 $15 Ra2 60. Kxc3) 59... Ra2 $19 60. a7 c2 61. Kd2 Kh4 62. Kc1 e4 63. Re8 Rxa7 {( -> ...Kh3)} 64. Rxe4+ Kg3 {Black mates.} 65. Kxc2 h4 {[%cal Bh5h4,Bh4h3,Bh3h2][%mdl 32]} 66. Kd2 Rf7 67. Re8 Kf2 68. Re2+ Kg1 69. Re3 Kg2 70. Ke2 h3 71. Re8 Rf3 72. Rh8 Rg3 73. Rf8 h2 74. Rf2+ Kh3 75. Rf1 Rg1 76. Rf3+ Kg4 {Weighted Error Value: White=0.35/Black=0.24 (precise)} 0-1

[Event "Prague Open 2024"]
[Site "Prague"]
[Date "2024.01.09"]
[Round "6.5"]
[White "Xie, Felix"]
[Black "Poetsch, Hagen"]
[Result "1/2-1/2"]
[ECO "B51"]
[WhiteElo "2249"]
[BlackElo "2471"]
[Annotator "TA"]
[PlyCount "86"]
[EventDate "2024.01.02"]
[EventType "swiss"]
[EventCountry "CZE"]
[SourceTitle "playchess.com"]
[Source "ChessBase"]
[SourceQuality "1"]
[TimeControl "40/5400+30:1800+30"]

{[%evp 9,86,14,14,12,8,13,14,12,26,25,27,26,28,14,24,-8,-7,-10,-10,-10,-12,-10,8,-7,18,18,20,0,0,-80,-70,-83,-67,-73,-64,-72,-77,-66,-75,-62,-71,-64,-89,-78,-49,-134,-133,-114,-61,-53,-53,-59,-71,-56,-51,-64,-37,-37,-14,-29,0,0,0,0,0,0,0,0,88,0,0,0,0,0,0,0,0,0,4]} 1. e4 {[%emt 0:00:20]} c5 {[%emt 0:00:06]} 2. Nf3 {[%emt 0:00:09]} d6 {[%emt 0:00:04]} 3. Bb5+ {[%emt 0:00:09]} Nd7 {[%emt 0:00:05]} 4. Ba4 {[%emt 0:00:06]} Ngf6 {[%emt 0:00:04]} 5. O-O {[%emt 0:00:07]} e6 {[%emt 0:00:09]} 6. Re1 {[%emt 0:00:05] B51: Sicilian: Moscow Variation (3 Bb5+) without 3...Bd7.} a6 {[%emt 0:02:29]} 7. c3 {[%emt 0:00:03]} c4 {[%emt 0:00:29]} 8. Bc2 {[%emt 0:00:07]} Be7 {[%emt 0:00:18]} 9. a4 {[%emt 0:00:53]} Nc5 {[%emt 0:00:14]} 10. Qe2 {[%emt 0:03:36]} d5 {[%emt 0:03:19]} 11. e5 {[%emt 0:00:21] [#]} Nfe4 $146 {[%emt 0:06:14]} ({Predecessor:} 11... Nh5 12. g3 Bd7 13. d3 cxd3 14. Bxd3 Nxd3 15. Qxd3 f5 16. Nbd2 g5 17. Nd4 O-O {1-0 Tocklin,T (2316)-Baranowski,T (2379) SCO MT-Pyrich S07 email 2018}) 12. d3 {[%emt 0:10:23]} (12. Na3 $5 {[%cal Ra3c4]}) 12... cxd3 {[%emt 0:00:23]} 13. Bxd3 {[%emt 0:00:03]} Nxd3 {[%emt 0:06:09]} 14. Qxd3 {[%emt 0:00:08]} Bd7 {[%emt 0:05:49]} 15. Be3 {[%emt 0:08:11]} b5 {[%emt 0:04:25]} 16. a5 {[%emt 0:10:24]} b4 {[%emt 0:01:18]} 17. Bb6 {[%emt 0:04:52]} Qc8 {[%emt 0:07:49]} 18. Nd4 {[%emt 0:02:15][%cal Oc3c4]} O-O {[%emt 0:02:15]} 19. f3 {[%emt 0:12:27]} (19. Qe3 $11) 19... Nc5 $17 {[%emt 0:06:13]} 20. Qc2 {[%emt 0:00:05]} f6 {[%emt 0:08:33]} 21. exf6 {[%emt 0:13:35]} Bxf6 {[%emt 0:00:36]} 22. Nd2 {[%emt 0:01:52]} bxc3 {[%emt 0:20:22]} 23. bxc3 {[%emt 0:13:16]} e5 {[%emt 0:00:32]} 24. Ne2 {[%emt 0:02:44]} Bf5 {[%emt 0:02:05]} 25. Qa2 {[%emt 0:00:07]} Be6 {[%emt 0:03:02]} 26. Qc2 {[%emt 0:02:47]} Qc6 {[%emt 0:01:22]} 27. c4 {[%emt 0:08:43] [#]} (27. f4 $1 $15) 27... dxc4 $1 {[%emt 0:02:02]} 28. Nxc4 {[%emt 0:00:44] [#]} e4 {[%emt 0:01:46]} (28... Nd7 $1 $17 {[%cal Rd7b6]} 29. Ne3 Qxc2 30. Nxc2 Nxb6 31. axb6 Rfb8) 29. Ne5 $15 {[%emt 0:01:50]} Bxe5 {[%emt 0:00:36] A strong pair of Bishops.} 30. Qxc5 {[%emt 0:00:04] White is weak on the light squares} Qxc5+ {[%emt 0:00:42]} 31. Bxc5 {[%emt 0:00:03]} Bxa1 {[%emt 0:11:59]} 32. Bxf8 {[%emt 0:00:06]} Rxf8 {[%emt 0:00:37]} 33. Rxa1 {[%emt 0:00:03][%mdl 4096] Endgame KRB-KRN} Bc4 {[%emt 0:02:03]} 34. Kf2 {[%emt 0:03:31]} (34. Nd4 {simplifies} exf3 35. Nxf3 Bd5 36. Ne5) 34... e3+ {[%emt 0:00:09]} 35. Ke1 $1 {[%emt 0:00:03]} Rd8 {[%emt 0:01:53] Strongly threatening ...Rd2.} 36. Rc1 {[%emt 0:02:05]} Bb3 {[%emt 0:00:43]} 37. Nf4 {[%emt 0:01:50]} g5 {[%emt 0:01:31]} 38. Nh3 {[%emt 0:00:19]} Ba4 {[%emt 0:00:24]} (38... Rd2 $11 {keeps the balance.}) 39. Ke2 {[%emt 0:00:59]} (39. Nxg5 $16 {Hoping for Ne4.} Rd2 40. Rc8+ Kg7 41. Ne6+ Kh6 42. Rc4) 39... Rd2+ $11 {[%emt 0:00:28] The position is equal.} 40. Kxe3 {[%emt 0:00:03]} Rxg2 {[%emt 0:00:08]} 41. Nf2 {[%emt 0:10:49]} Rxh2 {[%emt 0:01:24]} 42. Rg1 {[%emt 0:00:34]} Kf7 {[%emt 0:03:06]} 43. Rxg5 {[%emt 0:00:26]} Rh6 {[%emt 0:04:37] Weighted Error Value: White=0.12 (very precise) /Black=0.11 (very precise)} 1/2-1/2

[Event "Prague Open 2024"]
[Site "Prague"]
[Date "2024.01.09"]
[Round "6.6"]
[White "Ivanov, Mike"]
[Black "Brnusak, Tomas"]
[Result "1-0"]
[ECO "A04"]
[WhiteElo "2356"]
[BlackElo "2229"]
[Annotator "RC"]
[PlyCount "79"]
[EventDate "2024.01.02"]
[EventType "swiss"]
[EventCountry "CZE"]
[SourceTitle "playchess.com"]
[Source "ChessBase"]
[SourceQuality "1"]
[TimeControl "40/5400+30:1800+30"]

1. Nf3 {[%emt 0:00:03]} f5 {[%emt 0:00:07]} 2. d3 {[%emt 0:00:05]} d6 {[%emt 0:00:05]} 3. e4 {[%emt 0:00:26]} e5 {[%emt 0:00:06]} 4. Nc3 {[%emt 0:00:31]} Nf6 {[%emt 0:00:28]} 5. exf5 {[%emt 0:00:47]} Bxf5 {[%emt 0:00:06]} 6. d4 {[%emt 0:00:09]} e4 {[%emt 0:01:50]} 7. Nh4 {[%emt 0:03:41]} Bg4 {[%emt 0:03:02]} 8. Be2 {[%emt 0:00:14]} Bxe2 {[%emt 0:00:33]} 9. Qxe2 {[%emt 0:00:21]} Qe7 {[%emt 0:05:36]} 10. Bg5 {[%emt 0:10:37]} c6 {[%emt 0:07:46]} 11. Nf5 {[%emt 0:18:42]} Qe6 {[%emt 0:06:21]} 12. Bxf6 {[%emt 0:00:15]} Qxf5 {[%emt 0:00:28]} 13. Nxe4 {[%emt 0:00:22]} Kd7 {[%emt 0:04:23]} 14. Bh4 {[%emt 0:00:42]} d5 {[%emt 0:06:50]} 15. Nd2 {[%emt 0:04:50]} Qxc2 {[%emt 0:15:15]} 16. O-O {[%emt 0:03:32]} Qf5 {[%emt 0:02:09]} 17. Nf3 {[%emt 0:18:16]} Bd6 {[%emt 0:05:20]} 18. Rae1 {[%emt 0:03:08]} Na6 {[%emt 0:04:13]} 19. Ne5+ {[%emt 0:08:41]} Kc7 {[%emt 0:05:27]} 20. a3 {[%emt 0:06:59]} Rae8 {[%emt 0:04:03]} 21. b4 {[%emt 0:01:18]} Qf4 {[%emt 0:05:20]} 22. Bg3 {[%emt 0:03:49]} Qxd4 {[%emt 0:00:18]} 23. Qh5 {[%emt 0:00:44]} g6 {[%emt 0:12:02]} 24. Qh6 {[%emt 0:00:13]} Re7 {[%emt 0:00:34]} 25. Nxc6 {[%emt 0:00:44]} Kxc6 {[%emt 0:00:43]} 26. b5+ {[%emt 0:01:31]} Kxb5 {[%emt 0:00:28]} 27. Bxd6 {[%emt 0:00:15]} Rxe1 {[%emt 0:00:32]} 28. Rxe1 {[%emt 0:00:07]} Re8 {[%emt 0:00:36]} 29. Rb1+ {[%emt 0:00:57]} Kc6 {[%emt 0:00:05]} 30. Bg3 {[%emt 0:01:45]} Qb2 {[%emt 0:01:55]} 31. Rf1 {[%emt 0:02:18]} Re7 {[%emt 0:02:39]} 32. Qf8 {[%emt 0:00:47]} Re4 {[%emt 0:03:15]} 33. Qd6+ {[%emt 0:02:24]} Kb5 {[%emt 0:00:13]} 34. Qxd5+ {[%emt 0:00:10]} Nc5 {[%emt 0:00:14]} 35. Bd6 {[%emt 0:01:18]} Qd4 {[%emt 0:03:04]} 36. Rb1+ {[%emt 0:00:19]} Ka4 {[%emt 0:00:23]} 37. Qxc5 {[%emt 0:02:00]} Qxc5 {[%emt 0:00:11]} 38. Bxc5 {[%emt 0:00:05]} Re5 {[%emt 0:00:21]} 39. Bxa7 {[%emt 0:00:40]} Kxa3 {[%emt 0:00:05]} 40. f4 {[%emt 0:01:11]} 1-0

[Event "Prague Open 2024"]
[Site "Prague"]
[Date "2024.01.09"]
[Round "6.7"]
[White "Sindler, Michal"]
[Black "Berin, Artem"]
[Result "0-1"]
[ECO "B40"]
[WhiteElo "2158"]
[BlackElo "2327"]
[Annotator "TA"]
[PlyCount "76"]
[EventDate "2024.01.02"]
[EventType "swiss"]
[EventCountry "CZE"]
[SourceTitle "playchess.com"]
[Source "ChessBase"]
[SourceQuality "1"]
[TimeControl "40/5400+30:1800+30"]

{[%evp 10,75,0,0,22,31,48,42,43,43,44,43,41,41,91,99,106,82,175,91,92,101,141,131,147,143,143,132,151,77,72,12,37,15,15,3,12,15,29,0,0,0,19,14,63,65,97,78,83,42,46,61,56,0,0,-12,0,-960,-927,-29987,-29988,-29987,-29988,-29988,-29989,-29994,-29995,-29999]} 1. e4 c5 2. Nf3 e6 3. Qe2 Nc6 4. g3 g6 5. Bg2 Bg7 6. O-O Nf6 {C00: French: Unusual White 2nd moves.} 7. c3 d5 8. e5 Nd7 {[%cal Rd7e5] White is slightly better.} 9. d4 O-O 10. Na3 a6 {[#] Prevents Nb5.} 11. Bf4 $146 ({Predecessor:} 11. Nc2 b5 12. Bg5 Qb6 13. Qd2 Re8 14. Bh6 Bh8 15. Ng5 cxd4 16. cxd4 Ne7 17. Qf4 {1-0 Ribeiro,F (2202)-Tome,D (2000) POR-ch57 Lisbon 2001 (2.14)}) 11... f6 (11... b5 $14) 12. exf6 $16 Qxf6 {[%cal Rc5d4]} 13. Rad1 h6 (13... Qe7 $16 {is a better defense.}) 14. Rfe1 (14. Bd6 $18) 14... cxd4 15. cxd4 (15. Qxe6+ Qxe6 16. Rxe6 g5 $11) ({Don't play} 15. Nxd4 $6 e5 16. Bxd5+ Kh7 $11) 15... Re8 16. h4 Qf7 17. Nc2 Nf6 18. Ne5 {Dodges Bd7} Nxe5 19. Bxe5 (19. dxe5 $142 Nh5 20. Bd2) 19... Bd7 20. Bxf6 (20. Qd2 $16) 20... Qxf6 (20... Bxf6 {simplifies} 21. Bh3 Qg7 22. h5 Re7) 21. h5 gxh5 22. Qxh5 Rf8 23. f4 Be8 24. Qg4 Bf7 25. Re2 Rac8 26. Ne1 {[%cal Bc2e1,Be1f3,Bf3e5][%mdl 32]} Rce8 (26... h5 $11 {is more appropriate.} 27. Qh3 h4) 27. Nf3 $14 Re7 28. Ne5 Be8 29. Bf3 h5 30. Qh3 Qf5 31. Qh1 (31. Rh2 $14) 31... Bf6 $11 32. Rh2 Rg7 $36 {[%csl LRf4,LRg3][%mdl 2112] [#] Deflection. Black has good play.} (32... Rh7 {simplifies} 33. Qg2 Bxe5 34. dxe5 h4) 33. g4 $2 {[%mdl 8192]} (33. Bxh5 $2 {too greedy.} Bxh5 34. Rf1 Bxe5 35. dxe5 Rxg3+ 36. Rg2 Rxg2+ 37. Qxg2+ Kh8 $19) ({Much worse is} 33. Qg2 h4 34. Rh3 Bb5 $17) (33. Rg2 $11) 33... Qxf4 $19 34. Bxd5 Qe3+ {Black mates.} 35. Rf2 Bxe5 {[%csl Gf8][%cal Re3f2]} 36. Bxe6+ Kh7 {[%csl Gf8][%cal Re3f2]} 37. Bf5+ Rxf5 {[%csl Gf5][%cal Re3f2]} 38. dxe5 Qxf2# {What a bad dream for White. An entertaining game by Berin.   Weighted Error Value: White=0.44/Black=0.12 (very precise)} 0-1

[Event "Prague Open 2024"]
[Site "Prague"]
[Date "2024.01.09"]
[Round "6.8"]
[White "Koridze, Lile"]
[Black "Grave, Jacob Templen"]
[Result "1-0"]
[ECO "E04"]
[WhiteElo "2152"]
[BlackElo "2296"]
[Annotator "RC"]
[PlyCount "81"]
[EventDate "2024.01.02"]
[EventType "swiss"]
[EventCountry "CZE"]
[SourceTitle "playchess.com"]
[Source "ChessBase"]
[SourceQuality "1"]
[TimeControl "40/5400+30:1800+30"]

1. d4 Nf6 2. c4 e6 3. Nf3 d5 4. g3 dxc4 5. Bg2 Bd7 6. Ne5 Bc6 7. Nxc6 Nxc6 8. e3 Qd7 9. O-O O-O-O 10. Nc3 h5 11. Qa4 Nd5 12. Qxc4 h4 13. Rd1 hxg3 14. hxg3 f5 15. Qe2 Bb4 16. Bd2 g5 17. e4 fxe4 18. Qxe4 Nf6 19. Qg6 Rdf8 20. Be3 Rhg8 21. Qd3 Nd5 22. Nxd5 exd5 23. Qb5 Rd8 24. Rac1 Be7 25. Rc3 a6 26. Qa4 Bf6 27. Rdc1 Ne7 28. Rxc7+ Qxc7 29. Rxc7+ Kxc7 30. Qa5+ Kb8 31. Qb6 Rgf8 32. Qe6 Nc6 33. Bxd5 Rfe8 34. Qxf6 Rxd5 35. Bxg5 Nxd4 36. Kg2 Ka8 37. Qf7 Re6 38. Qg8+ Ka7 39. Bf4 Rd7 40. Qc8 Rd5 41. Bc7 1-0